[Event "EYCC Open-U18 2019"]
[Site "Bratislava"]
[Date "2019.08.06"]
[Round "5.7"]
[White "Gorshtein, Ido"]
[Black "Schoppen, Casper"]
[Result "1-0"]
[ECO "B30"]
[WhiteElo "2367"]
[BlackElo "2493"]
[Annotator "ChessBase"]
[PlyCount "119"]
[EventDate "2019.08.02"]
[EventType "swiss"]
[EventCountry "SVK"]
[SourceTitle "playchess.com"]
[Source "ChessBase"]
[SourceQuality "1"]
[TimeControl "40/5400+30:1800+30"]

1. e4 {[%emt 0:00:00]} c5 {[%emt 0:00:00]} 2. Nf3 {[%emt 0:00:00]} Nc6 {[%emt 0:00:04]} 3. Nc3 {[%emt 0:00:00]} e5 {[%emt 0:00:41]} 4. Bc4 {[%emt 0:00:39]} Be7 {[%emt 0:00:15]} 5. d3 {[%emt 0:02:26]} d6 {[%emt 0:00:14]} 6. Nd5 {[%emt 0:02:26]} Nf6 {[%emt 0:04:09]} 7. Bd2 {[%emt 0:11:33]} Be6 {[%emt 0:05:31]} 8. Nxf6+ {[%emt 0:00:09]} Bxf6 {[%emt 0:00:07]} 9. Bxe6 {[%emt 0:00:03]} fxe6 {[%emt 0:00:09]} 10. c3 {[%emt 0:00:26]} O-O {[%emt 0:01:32]} 11. O-O {[%emt 0:04:01]} Qd7 {[%emt 0:03:06]} 12. a3 {[%emt 0:01:12]} Rf7 {[%emt 0:06:05]} 13. b4 {[%emt 0:02:40]} b6 {[%emt 0:03:27]} 14. a4 {[%emt 0:04:09]} Raf8 {[%emt 0:04:07]} 15. b5 {[%emt 0:14:05]} Ne7 {[%emt 0:05:08]} 16. c4 {[%emt 0:00:41]} Ng6 {[%emt 0:01:45]} 17. g3 {[%emt 0:04:56]} Be7 {[%emt 0:10:26]} 18. Ne1 {[%emt 0:01:01]} d5 {[%emt 0:01:38]} 19. Qe2 {[%emt 0:11:37]} Rd8 {[%emt 0:09:35]} 20. Ra2 {[%emt 0:01:08]} a6 {[%emt 0:04:42]} 21. Ng2 {[%emt 0:08:16]} Ra8 {[%emt 0:04:33]} 22. Rb1 {[%emt 0:03:03]} axb5 {[%emt 0:01:59]} 23. Rxb5 {[%emt 0:01:07]} Bd8 {[%emt 0:00:31]} 24. Bc3 {[%emt 0:08:24]} dxc4 {[%emt 0:03:07]} 25. dxc4 {[%emt 0:00:10]} Qc6 {[%emt 0:03:49]} 26. Ne1 {[%emt 0:01:31]} Rfa7 {[%emt 0:08:27]} 27. Qc2 {[%emt 0:00:42]} Bc7 {[%emt 0:01:26]} 28. Nf3 {[%emt 0:00:35]} Rf8 {[%emt 0:01:32]} 29. Qe2 {[%emt 0:00:35]} Qa8 {[%emt 0:03:13]} 30. h4 {[%emt 0:02:17]} Rxa4 {[%emt 0:05:39]} 31. Rxa4 {[%emt 0:00:02]} Qxa4 {[%emt 0:00:06]} 32. h5 {[%emt 0:00:07]} Ne7 {[%emt 0:00:08]} 33. Nxe5 {[%emt 0:01:12]} Rd8 {[%emt 0:00:45]} 34. Rb1 {[%emt 0:01:41]} Bxe5 {[%emt 0:00:55]} 35. Bxe5 {[%emt 0:00:06]} Nc6 {[%emt 0:00:06]} 36. Ra1 {[%emt 0:08:35]} Qb3 {[%emt 0:00:34]} 37. Bb2 {[%emt 0:01:44]} h6 {[%emt 0:02:30]} 38. Kg2 {[%emt 0:01:30]} Na5 {[%emt 0:01:31]} 39. Rc1 {[%emt 0:00:56]} Rd7 {[%emt 0:02:42]} 40. Ba1 {[%emt 0:00:00]} Qa3 {[%emt 0:00:00]} 41. Rb1 {[%emt 0:07:01]} Qa4 {[%emt 0:09:09]} 42. Qg4 {[%emt 0:01:28]} Qc6 {[%emt 0:02:11]} 43. Rd1 {[%emt 0:02:38]} Kf8 {[%emt 0:10:22]} 44. Qf4+ {[%emt 0:01:23]} Kg8 {[%emt 0:00:27]} 45. Rxd7 {[%emt 0:04:52]} Qxd7 {[%emt 0:00:05]} 46. Qb8+ {[%emt 0:00:04]} Kh7 {[%emt 0:00:08]} 47. Qxb6 {[%emt 0:00:13]} Nxc4 {[%emt 0:00:23]} 48. Qxc5 {[%emt 0:00:10]} Qd3 {[%emt 0:00:30]} 49. Qd4 {[%emt 0:01:06]} Qxd4 {[%emt 0:00:06]} 50. Bxd4 {[%emt 0:00:01]} g6 {[%emt 0:01:02]} 51. g4 {[%emt 0:01:28]} e5 {[%emt 0:05:39]} 52. Bc3 {[%emt 0:02:00]} g5 {[%emt 0:06:04]} 53. Kf3 {[%emt 0:00:37]} Kg7 {[%emt 0:00:06]} 54. Ke2 {[%emt 0:00:06]} Kf6 {[%emt 0:00:03]} 55. Kd3 {[%emt 0:00:17]} Nb6 {[%emt 0:00:20]} 56. Bb4 {[%emt 0:00:29]} Nd7 {[%emt 0:00:26]} 57. Kc4 {[%emt 0:00:29]} Ke6 {[%emt 0:00:05]} 58. f3 {[%emt 0:00:12]} Nf6 {[%emt 0:01:19]} 59. Bf8 {[%emt 0:01:05]} Ng8 {[%emt 0:00:06]} 60. Bg7 {[%emt 0:00:36] Kd5+} 1-0

[Event "EYCC Open-U18 2019"]
[Site "Bratislava"]
[Date "2019.08.06"]
[Round "5.8"]
[White "Pechac, Jergus"]
[Black "Kozak, Antoni"]
[Result "1-0"]
[ECO "E43"]
[WhiteElo "2469"]
[BlackElo "2365"]
[Annotator "ChessBase"]
[PlyCount "79"]
[EventDate "2019.08.02"]
[EventType "swiss"]
[EventCountry "SVK"]
[SourceTitle "playchess.com"]
[Source "ChessBase"]
[SourceQuality "1"]
[TimeControl "40/5400+30:1800+30"]

1. d4 {[%emt 0:00:00]} Nf6 {[%emt 0:00:00]} 2. c4 {[%emt 0:00:00]} e6 {[%emt 0:00:00]} 3. Nc3 {[%emt 0:00:00]} Bb4 {[%emt 0:00:00]} 4. e3 {[%emt 0:00:00]} b6 {[%emt 0:00:00]} 5. Bd3 {[%emt 0:00:55]} Bb7 {[%emt 0:00:33]} 6. Nf3 {[%emt 0:00:09]} O-O {[%emt 0:00:05]} 7. O-O {[%emt 0:00:13]} d5 {[%emt 0:00:02]} 8. cxd5 {[%emt 0:00:20]} exd5 {[%emt 0:00:05]} 9. Ne5 {[%emt 0:00:43]} Bd6 {[%emt 0:09:53]} 10. Ne2 {[%emt 0:15:11]} c5 {[%emt 0:04:38]} 11. b3 {[%emt 0:04:21]} Nc6 {[%emt 0:06:18]} 12. Nxc6 {[%emt 0:01:39]} Bxc6 {[%emt 0:00:04]} 13. Ng3 {[%emt 0:00:13]} Re8 {[%emt 0:16:53]} 14. Bb2 {[%emt 0:00:42]} g6 {[%emt 0:07:22]} 15. Qf3 {[%emt 0:05:15]} Ne4 {[%emt 0:00:54]} 16. Rfd1 {[%emt 0:01:52]} f5 {[%emt 0:06:52]} 17. Bxe4 {[%emt 0:05:03]} fxe4 {[%emt 0:01:24]} 18. Qe2 {[%emt 0:00:06]} Qd7 {[%emt 0:03:38]} 19. Qc2 {[%emt 0:03:35]} c4 {[%emt 0:03:42]} 20. a4 {[%emt 0:07:53]} b5 {[%emt 0:04:37]} 21. axb5 {[%emt 0:01:43]} Bxb5 {[%emt 0:00:08]} 22. bxc4 {[%emt 0:00:19]} Bxc4 {[%emt 0:00:07]} 23. Ba3 {[%emt 0:00:08]} a5 {[%emt 0:06:18]} 24. Bc5 {[%emt 0:04:23]} Bxc5 {[%emt 0:07:06]} 25. dxc5 {[%emt 0:00:09]} Qc6 {[%emt 0:00:23]} 26. Ra4 {[%emt 0:07:25]} Bd3 {[%emt 0:03:39]} 27. Qa2 {[%emt 0:01:25]} Qxc5 {[%emt 0:02:17]} 28. Ra1 {[%emt 0:00:09]} Bc4 {[%emt 0:01:07]} 29. Qd2 {[%emt 0:01:40]} Reb8 {[%emt 0:00:55]} 30. Qc3 {[%emt 0:03:47]} Rb3 {[%emt 0:03:07]} 31. Qe5 {[%emt 0:01:16]} Qb5 {[%emt 0:01:41]} 32. Qe6+ {[%emt 0:02:22]} Kg7 {[%emt 0:00:12]} 33. h4 {[%emt 0:00:50]} h5 {[%emt 0:02:17]} 34. Qe5+ {[%emt 0:01:53]} Kg8 {[%emt 0:02:04]} 35. Qe6+ {[%emt 0:03:42]} Kg7 {[%emt 0:00:01]} 36. Qe7+ {[%emt 0:00:10]} Kg8 {[%emt 0:00:49]} 37. Rxa5 {[%emt 0:01:14]} Rxa5 {[%emt 0:02:30]} 38. Qd8+ {[%emt 0:00:09]} Kh7 {[%emt 0:04:36]} 39. Rxa5 {[%emt 0:00:06]} Qb7 {[%emt 0:00:25]} 40. Rc5 {[%emt 0:00:00]} 1-0

[Event "EYCC Open-U18 2019"]
[Site "Bratislava"]
[Date "2019.08.06"]
[Round "5.9"]
[White "Gatineau, Yovann"]
[Black "Petriashvili, Nikoloz"]
[Result "1/2-1/2"]
[ECO "D00"]
[WhiteElo "2364"]
[BlackElo "2451"]
[Annotator "ChessBase"]
[PlyCount "85"]
[EventDate "2019.08.02"]
[EventType "swiss"]
[EventCountry "SVK"]
[SourceTitle "playchess.com"]
[Source "ChessBase"]
[SourceQuality "1"]
[TimeControl "40/5400+30:1800+30"]

1. d4 {[%emt 0:00:00]} d5 {[%emt 0:00:00]} 2. Bf4 {[%emt 0:00:00]} Nf6 {[%emt 0:00:25]} 3. e3 {[%emt 0:00:00]} Bf5 {[%emt 0:03:50]} 4. c4 {[%emt 0:00:00]} e6 {[%emt 0:05:39]} 5. Nc3 {[%emt 0:00:07]} c6 {[%emt 0:01:13]} 6. Qb3 {[%emt 0:00:09]} Qc8 {[%emt 0:05:13]} 7. Rc1 {[%emt 0:00:11]} Nbd7 {[%emt 0:04:35]} 8. cxd5 {[%emt 0:04:03]} Nxd5 {[%emt 0:00:05]} 9. Bg3 {[%emt 0:01:30]} Nxc3 {[%emt 0:03:55]} 10. bxc3 {[%emt 0:02:33]} Be7 {[%emt 0:00:43]} 11. Nf3 {[%emt 0:01:12]} c5 {[%emt 0:06:47]} 12. Be2 {[%emt 0:06:30]} cxd4 {[%emt 0:01:26]} 13. exd4 {[%emt 0:04:48]} Be4 {[%emt 0:03:58]} 14. O-O {[%emt 0:01:06]} b6 {[%emt 0:00:05]} 15. c4 {[%emt 0:07:11]} O-O {[%emt 0:02:53]} 16. d5 {[%emt 0:03:39]} Nc5 {[%emt 0:03:21]} 17. Qe3 {[%emt 0:00:45]} Qb7 {[%emt 0:01:02]} 18. Rfd1 {[%emt 0:11:55]} Rad8 {[%emt 0:01:00]} 19. d6 {[%emt 0:12:39]} Bf6 {[%emt 0:00:04]} 20. Rd2 {[%emt 0:05:01]} Bc6 {[%emt 0:09:15]} 21. Ne5 {[%emt 0:08:35]} Bxe5 {[%emt 0:00:46]} 22. Bxe5 {[%emt 0:00:10]} f6 {[%emt 0:01:08]} 23. Bb2 {[%emt 0:01:23]} Bxg2 {[%emt 0:05:15]} 24. Ba3 {[%emt 0:04:51]} Qc6 {[%emt 0:08:10]} 25. Rd4 {[%emt 0:02:45]} Qb7 {[%emt 0:06:42]} 26. Rg4 {[%emt 0:06:55]} Bc6 {[%emt 0:00:15]} 27. Bxc5 {[%emt 0:00:29]} bxc5 {[%emt 0:00:12]} 28. Qxc5 {[%emt 0:01:35]} Qb6 {[%emt 0:05:57]} 29. Qa3 {[%emt 0:00:10]} f5 {[%emt 0:06:46]} 30. c5 {[%emt 0:02:33]} Qb7 {[%emt 0:00:01]} 31. Rg3 {[%emt 0:01:53]} f4 {[%emt 0:00:51]} 32. Rg5 {[%emt 0:00:46]} h6 {[%emt 0:01:51]} 33. Rg4 {[%emt 0:00:45]} e5 {[%emt 0:01:29]} 34. Qc3 {[%emt 0:01:35]} Rde8 {[%emt 0:00:27]} 35. Qb3+ {[%emt 0:03:17]} Qxb3 {[%emt 0:00:03]} 36. axb3 {[%emt 0:00:07]} a5 {[%emt 0:02:35]} 37. Ra1 {[%emt 0:02:11]} Ra8 {[%emt 0:00:24]} 38. f3 {[%emt 0:00:58]} Bd5 {[%emt 0:01:12]} 39. Kf2 {[%emt 0:03:25]} Bxb3 {[%emt 0:01:36]} 40. c6 {[%emt 0:00:00]} Rf6 {[%emt 0:00:00]} 41. d7 {[%emt 0:23:07]} Rxc6 {[%emt 0:03:36]} 42. Rxa5 {[%emt 0:00:08]} Rd8 {[%emt 0:01:32]} 43. Rxe5 {[%emt 0:00:58]} 1/2-1/2

[Event "EYCC Open-U18 2019"]
[Site "Bratislava"]
[Date "2019.08.06"]
[Round "5.10"]
[White "Murzin, Volodar"]
[Black "Guerra Rivera, Salvador"]
[Result "1-0"]
[ECO "C11"]
[WhiteElo "2429"]
[BlackElo "2355"]
[Annotator "NA"]
[PlyCount "73"]
[EventDate "2019.08.02"]
[EventType "swiss"]
[EventCountry "SVK"]
[SourceTitle "playchess.com"]
[Source "ChessBase"]
[SourceQuality "1"]
[TimeControl "40/5400+30:1800+30"]

1. e4 {[%emt 0:00:00]} e6 {[%emt 0:00:00]} 2. d4 {[%emt 0:00:00]} d5 {[%emt 0:00:00]} 3. Nc3 {[%emt 0:00:01]} Nf6 {[%emt 0:00:40]} 4. e5 {[%emt 0:00:17]} Nfd7 {[%emt 0:00:29]} 5. f4 {[%emt 0:00:26]} c5 {[%emt 0:00:20]} 6. Nf3 {[%emt 0:00:21]} Nc6 {[%emt 0:00:25]} 7. Be3 {[%emt 0:00:18]} Be7 {[%emt 0:00:17]} 8. Qd2 {[%emt 0:07:17]} O-O {[%emt 0:00:52]} 9. g3 {[%emt 0:04:06]} Rb8 {[%emt 0:00:58]} 10. Be2 {[%emt 0:02:46]} b6 {[%emt 0:05:14]} 11. O-O {[%emt 0:01:29]} f5 {[%emt 0:00:23]} 12. Rad1 {[%emt 0:09:03]} cxd4 {[%emt 0:05:47]} 13. Nxd4 {[%emt 0:00:06]} Nxd4 {[%emt 0:00:08]} 14. Bxd4 {[%emt 0:00:02]} Nc5 {[%emt 0:00:09]} 15. Qe3 {[%emt 0:00:14]} Ba6 {[%emt 0:05:24]} 16. Bxa6 {[%emt 0:03:23]} Nxa6 {[%emt 0:00:17]} 17. Rf2 {[%emt 0:02:25]} Nc5 {[%emt 0:03:32]} 18. Rg2 {[%emt 0:02:13]} Kh8 {[%emt 0:05:56]} 19. g4 {[%emt 0:02:57]} g5 {[%emt 0:03:56]} 20. Kh1 {[%emt 0:07:15]} gxf4 {[%emt 0:11:29]} 21. Qxf4 {[%emt 0:04:43]} Bg5 {[%emt 0:04:28]} 22. Qf3 {[%emt 0:01:27]} f4 {[%emt 0:06:27]} 23. Nb5 {[%emt 0:09:00]} Ne4 {[%emt 0:07:26]} 24. Nd6 {[%emt 0:07:55]} Bh4 {[%emt 0:05:34]} 25. g5 {[%emt 0:03:57]} Nxg5 {[%emt 0:10:00]} 26. Qh5 {[%emt 0:06:51]} Ne4 {[%emt 0:04:16]} 27. Rdg1 {[%emt 0:03:25]} Bg3 {[%emt 0:08:37]} 28. hxg3 {[%emt 0:01:05]} Nxg3+ {[%emt 0:03:56]} 29. Kh2 {[%emt 0:05:10]} Qe7 {[%emt 0:02:04]} 30. Qh6 {[%emt 0:04:15]} Rbd8 {[%emt 0:03:12]} 31. Bf2 {[%emt 0:00:59]} Rg8 {[%emt 0:00:57]} 32. Bxg3 {[%emt 0:01:25]} Rg6 {[%emt 0:00:19]} 33. Qxf4 {[%emt 0:02:53]} Rf8 {[%emt 0:00:05]} 34. Bh4 {[%emt 0:00:39]} Qg7 {[%emt 0:02:10]} 35. Rxg6 {[%emt 0:00:14]} Rxf4 {[%emt 0:00:11]} 36. Rxg7 {[%emt 0:00:06]} Rxh4+ {[%emt 0:00:09]} 37. Kg3 {[%emt 0:00:04]} 1-0

[Event "EYCC Open-U18 2019"]
[Site "Bratislava"]
[Date "2019.08.06"]
[Round "5.11"]
[White "Levitskiy, Andrey"]
[Black "Zarubitski, Viachaslau"]
[Result "0-1"]
[ECO "B04"]
[WhiteElo "2280"]
[BlackElo "2424"]
[Annotator "NA"]
[PlyCount "98"]
[EventDate "2019.08.02"]
[EventType "swiss"]
[EventCountry "SVK"]
[SourceTitle "playchess.com"]
[Source "ChessBase"]
[SourceQuality "1"]
[TimeControl "40/5400+30:1800+30"]

1. e4 {[%emt 0:00:00]} Nf6 {[%emt 0:00:00]} 2. e5 {[%emt 0:00:05]} Nd5 {[%emt 0:00:00]} 3. d4 {[%emt 0:00:09]} d6 {[%emt 0:00:02]} 4. Nf3 {[%emt 0:00:12]} dxe5 {[%emt 0:00:14]} 5. Nxe5 {[%emt 0:00:15]} c6 {[%emt 0:00:07]} 6. Be2 {[%emt 0:00:48]} Nd7 {[%emt 0:00:45]} 7. Nf3 {[%emt 0:00:50]} g6 {[%emt 0:00:10]} 8. c4 {[%emt 0:01:17]} Nc7 {[%emt 0:00:13]} 9. Nc3 {[%emt 0:01:01]} Bg7 {[%emt 0:00:11]} 10. O-O {[%emt 0:02:33]} O-O {[%emt 0:00:05]} 11. Bf4 {[%emt 0:08:28]} Ne6 {[%emt 0:02:41]} 12. Be3 {[%emt 0:01:43]} Nf6 {[%emt 0:00:51]} 13. h3 {[%emt 0:12:50]} Qc7 {[%emt 0:00:30]} 14. Qc1 {[%emt 0:02:40]} b6 {[%emt 0:15:11]} 15. Rd1 {[%emt 0:16:33]} Bb7 {[%emt 0:00:17]} 16. d5 {[%emt 0:02:20]} Nc5 {[%emt 0:06:23]} 17. Bf4 {[%emt 0:09:50]} Qc8 {[%emt 0:00:43]} 18. d6 {[%emt 0:03:29]} Re8 {[%emt 0:19:44]} 19. dxe7 {[%emt 0:00:25]} Nce4 {[%emt 0:04:38]} 20. Nxe4 {[%emt 0:02:50]} Nxe4 {[%emt 0:00:26]} 21. Bh6 {[%emt 0:06:17]} Rxe7 {[%emt 0:05:59]} 22. Bxg7 {[%emt 0:00:49]} Kxg7 {[%emt 0:00:01]} 23. Bd3 {[%emt 0:02:12]} c5 {[%emt 0:01:33]} 24. Re1 {[%emt 0:01:08]} Qf5 {[%emt 0:05:47]} 25. Bxe4 {[%emt 0:08:02]} Bxe4 {[%emt 0:00:30]} 26. Ng5 {[%emt 0:05:07]} Rae8 {[%emt 0:01:30]} 27. Nxe4 {[%emt 0:00:44]} Rxe4 {[%emt 0:00:04]} 28. Qc3+ {[%emt 0:04:11]} Qf6 {[%emt 0:06:31]} 29. Rxe4 {[%emt 0:03:57]} Rxe4 {[%emt 0:01:05]} 30. Qc2 {[%emt 0:02:34]} Qf4 {[%emt 0:17:27]} 31. Rc1 {[%emt 0:00:21]} Rd4 {[%emt 0:00:32]} 32. Qc3 {[%emt 0:00:41]} f6 {[%emt 0:03:22]} 33. g3 {[%emt 0:01:07]} Qf5 {[%emt 0:02:48]} 34. Kg2 {[%emt 0:00:59]} Qe4+ {[%emt 0:00:22]} 35. Kg1 {[%emt 0:00:06]} Rd3 {[%emt 0:00:15]} 36. Re1 {[%emt 0:00:50]} Rxc3 {[%emt 0:02:04]} 37. Rxe4 {[%emt 0:00:02]} Rc1+ {[%emt 0:00:03]} 38. Kg2 {[%emt 0:00:11]} Kf7 {[%emt 0:00:03]} 39. b3 {[%emt 0:01:22]} Rc2 {[%emt 0:00:33]} 40. a3 {[%emt 0:00:00]} Rc3 {[%emt 0:00:00]} 41. Re3 {[%emt 0:00:55]} Rxe3 {[%emt 0:03:48]} 42. fxe3 {[%emt 0:00:01]} Ke6 {[%emt 0:00:05]} 43. Kf3 {[%emt 0:05:07]} Ke5 {[%emt 0:00:03]} 44. e4 {[%emt 0:05:01]} Kd4 {[%emt 0:06:00]} 45. Kf4 {[%emt 0:01:32]} h5 {[%emt 0:05:55]} 46. Kf3 {[%emt 0:14:27]} g5 {[%emt 0:02:53]} 47. h4 {[%emt 0:00:13]} a6 {[%emt 0:00:05]} 48. b4 {[%emt 0:00:32]} gxh4 {[%emt 0:01:27]} 49. gxh4 {[%emt 0:00:08]} Kxc4 {[%emt 0:00:10]} 0-1

[Event "EYCC Open-U18 2019"]
[Site "Bratislava"]
[Date "2019.08.06"]
[Round "5.12"]
[White "Ciorgovean, Iustin"]
[Black "Bjerre, Jonas Buhl"]
[Result "0-1"]
[ECO "E32"]
[WhiteElo "2330"]
[BlackElo "2503"]
[Annotator "ChessBase"]
[PlyCount "82"]
[EventDate "2019.08.02"]
[EventType "swiss"]
[EventCountry "SVK"]
[SourceTitle "playchess.com"]
[Source "ChessBase"]
[SourceQuality "1"]
[TimeControl "40/5400+30:1800+30"]

1. d4 {[%emt 0:00:00]} Nf6 {[%emt 0:00:00]} 2. c4 {[%emt 0:00:00]} e6 {[%emt 0:00:00]} 3. Nc3 {[%emt 0:00:00]} Bb4 {[%emt 0:00:07]} 4. Qc2 {[%emt 0:00:00]} O-O {[%emt 0:00:16]} 5. a3 {[%emt 0:00:00]} Bxc3+ {[%emt 0:00:05]} 6. Qxc3 {[%emt 0:00:00]} d6 {[%emt 0:00:56]} 7. f3 {[%emt 0:01:18]} b6 {[%emt 0:02:50]} 8. e4 {[%emt 0:04:47]} c5 {[%emt 0:00:15]} 9. Be3 {[%emt 0:13:05]} Ba6 {[%emt 0:06:45]} 10. Ne2 {[%emt 0:26:38]} Nc6 {[%emt 0:07:11]} 11. d5 {[%emt 0:09:12]} exd5 {[%emt 0:03:32]} 12. cxd5 {[%emt 0:01:22]} Ne5 {[%emt 0:01:17]} 13. Ng3 {[%emt 0:03:32]} Bxf1 {[%emt 0:06:14]} 14. Rxf1 {[%emt 0:00:39]} b5 {[%emt 0:08:24]} 15. Kf2 {[%emt 0:01:25]} a5 {[%emt 0:04:27]} 16. Kg1 {[%emt 0:02:22]} b4 {[%emt 0:02:17]} 17. axb4 {[%emt 0:01:50]} axb4 {[%emt 0:01:06]} 18. Qc2 {[%emt 0:01:32]} Nfd7 {[%emt 0:10:15]} 19. Qe2 {[%emt 0:06:21]} Qf6 {[%emt 0:05:25]} 20. Ra6 {[%emt 0:05:33]} c4 {[%emt 0:05:19]} 21. Rfa1 {[%emt 0:01:32]} Rxa6 {[%emt 0:02:38]} 22. Rxa6 {[%emt 0:00:06]} Nd3 {[%emt 0:04:13]} 23. Nf5 {[%emt 0:04:27]} Qxb2 {[%emt 0:01:21]} 24. Qxb2 {[%emt 0:00:09]} Nxb2 {[%emt 0:00:04]} 25. Bd4 {[%emt 0:03:33]} Nd3 {[%emt 0:01:50]} 26. Rxd6 {[%emt 0:04:56]} N7e5 {[%emt 0:06:06]} 27. f4 {[%emt 0:01:57]} Ng6 {[%emt 0:01:45]} 28. g3 {[%emt 0:00:44]} c3 {[%emt 0:05:21]} 29. Rc6 {[%emt 0:02:01]} Ra8 {[%emt 0:02:21]} 30. Kf1 {[%emt 0:01:08]} Nf8 {[%emt 0:02:18]} 31. Ke2 {[%emt 0:01:36]} Nc1+ {[%emt 0:00:01]} 32. Ke3 {[%emt 0:01:02]} Na2 {[%emt 0:02:20]} 33. Nxg7 {[%emt 0:01:15]} b3 {[%emt 0:01:10]} 34. Nf5 {[%emt 0:00:34]} Nd7 {[%emt 0:01:26]} 35. Kd3 {[%emt 0:00:52]} b2 {[%emt 0:01:21]} 36. Kc2 {[%emt 0:01:58]} Nb4+ {[%emt 0:00:19]} 37. Kxc3 {[%emt 0:00:29]} b1=Q {[%emt 0:01:16]} 38. Kc4 {[%emt 0:00:29]} Qd3+ {[%emt 0:01:43]} 39. Kxb4 {[%emt 0:00:07]} Qa3+ {[%emt 0:00:10]} 40. Kc4 {[%emt 0:00:00]} Ra4+ {[%emt 0:00:00]} 41. Kb5 {[%emt 0:00:30]} Qb4# {[%emt 0:00:15]} 0-1

[Event "EYCC Open-U18 2019"]
[Site "Bratislava"]
[Date "2019.08.06"]
[Round "5.13"]
[White "Gumularz, Szymon"]
[Black "Martinez Fernandez, Adrian"]
[Result "1-0"]
[ECO "A30"]
[WhiteElo "2502"]
[BlackElo "2311"]
[Annotator "ChessBase"]
[PlyCount "45"]
[EventDate "2019.08.02"]
[EventType "swiss"]
[EventCountry "SVK"]
[SourceTitle "playchess.com"]
[Source "ChessBase"]
[SourceQuality "1"]
[TimeControl "40/5400+30:1800+30"]

1. c4 {[%emt 0:00:00]} c5 {[%emt 0:00:12]} 2. Nf3 {[%emt 0:00:00]} g6 {[%emt 0:00:27]} 3. d4 {[%emt 0:00:15]} cxd4 {[%emt 0:00:09]} 4. Nxd4 {[%emt 0:00:14]} Nf6 {[%emt 0:01:03]} 5. Nc3 {[%emt 0:00:15]} Nc6 {[%emt 0:00:25]} 6. e4 {[%emt 0:01:52]} d6 {[%emt 0:00:58]} 7. Be2 {[%emt 0:03:05]} Nxd4 {[%emt 0:00:10]} 8. Qxd4 {[%emt 0:00:11]} Bg7 {[%emt 0:00:12]} 9. Be3 {[%emt 0:00:29]} O-O {[%emt 0:00:10]} 10. Qd2 {[%emt 0:00:05]} a5 {[%emt 0:02:23]} 11. O-O {[%emt 0:02:40]} a4 {[%emt 0:00:06]} 12. Rad1 {[%emt 0:01:16]} Qa5 {[%emt 0:06:59]} 13. Bd4 {[%emt 0:01:19]} Be6 {[%emt 0:21:16]} 14. f4 {[%emt 0:02:40]} Qb4 {[%emt 0:02:27]} 15. a3 {[%emt 0:16:55]} Qa5 {[%emt 0:11:26]} 16. f5 {[%emt 0:02:48]} Bd7 {[%emt 0:00:16]} 17. c5 {[%emt 0:13:02]} Bc6 {[%emt 0:18:52]} 18. cxd6 {[%emt 0:03:14]} exd6 {[%emt 0:00:02]} 19. Qf4 {[%emt 0:03:17]} Rad8 {[%emt 0:04:26]} 20. Qh4 {[%emt 0:08:57]} Ne8 {[%emt 0:00:37]} 21. f6 {[%emt 0:02:07]} Bh8 {[%emt 0:01:46]} 22. Rd3 {[%emt 0:01:19]} Bxf6 {[%emt 0:06:27]} 23. Rxf6 {[%emt 0:00:18]} 1-0

[Event "EYCC Open-U18 2019"]
[Site "Bratislava"]
[Date "2019.08.06"]
[Round "5.14"]
[White "Galiana Fernandez, Adrian"]
[Black "Blohberger, Felix"]
[Result "1/2-1/2"]
[ECO "E35"]
[WhiteElo "2302"]
[BlackElo "2476"]
[Annotator "ChessBase"]
[PlyCount "112"]
[EventDate "2019.08.02"]
[EventType "swiss"]
[EventCountry "SVK"]
[SourceTitle "playchess.com"]
[Source "ChessBase"]
[SourceQuality "1"]
[TimeControl "40/5400+30:1800+30"]

1. d4 {[%emt 0:00:00]} Nf6 {[%emt 0:00:00]} 2. c4 {[%emt 0:00:00]} e6 {[%emt 0:00:00]} 3. Nc3 {[%emt 0:00:00]} Bb4 {[%emt 0:00:00]} 4. Qc2 {[%emt 0:00:00]} d5 {[%emt 0:01:00]} 5. cxd5 {[%emt 0:00:00]} exd5 {[%emt 0:00:17]} 6. Bg5 {[%emt 0:00:04]} h6 {[%emt 0:00:23]} 7. Bh4 {[%emt 0:00:05]} O-O {[%emt 0:02:42]} 8. e3 {[%emt 0:00:43]} Be6 {[%emt 0:00:08]} 9. a3 {[%emt 0:11:32]} Bxc3+ {[%emt 0:04:20]} 10. Qxc3 {[%emt 0:06:13]} Bf5 {[%emt 0:00:27]} 11. Nf3 {[%emt 0:19:06]} c6 {[%emt 0:05:30]} 12. Nd2 {[%emt 0:05:31]} Nbd7 {[%emt 0:00:56]} 13. Be2 {[%emt 0:01:54]} Ne4 {[%emt 0:04:35]} 14. Nxe4 {[%emt 0:00:50]} Qxh4 {[%emt 0:00:17]} 15. Nd6 {[%emt 0:01:10]} Qg5 {[%emt 0:03:49]} 16. O-O {[%emt 0:17:23]} Rab8 {[%emt 0:06:41]} 17. Nxf5 {[%emt 0:00:53]} Qxf5 {[%emt 0:00:07]} 18. Bd3 {[%emt 0:00:04]} Qe6 {[%emt 0:05:00]} 19. b4 {[%emt 0:02:03]} Rbc8 {[%emt 0:04:11]} 20. Rae1 {[%emt 0:02:05]} f5 {[%emt 0:09:29]} 21. e4 {[%emt 0:00:16]} fxe4 {[%emt 0:00:33]} 22. Rxe4 {[%emt 0:00:07]} Qd6 {[%emt 0:01:52]} 23. Re2 {[%emt 0:01:44]} Rce8 {[%emt 0:04:36]} 24. Rfe1 {[%emt 0:10:40]} Nf6 {[%emt 0:05:30]} 25. g3 {[%emt 0:03:38]} Rxe2 {[%emt 0:04:23]} 26. Rxe2 {[%emt 0:00:01]} Re8 {[%emt 0:04:29]} 27. Re5 {[%emt 0:03:24]} Kf8 {[%emt 0:02:50]} 28. Bg6 {[%emt 0:02:48]} Rxe5 {[%emt 0:15:27]} 29. dxe5 {[%emt 0:00:02]} d4 {[%emt 0:00:08]} 30. exd6 {[%emt 0:04:39]} dxc3 {[%emt 0:00:39]} 31. Kf1 {[%emt 0:00:50]} Ng4 {[%emt 0:03:20]} 32. Ke2 {[%emt 0:01:08]} Ne5 {[%emt 0:01:05]} 33. Bf5 {[%emt 0:02:00]} Nc4 {[%emt 0:01:53]} 34. a4 {[%emt 0:02:42]} Nxd6 {[%emt 0:07:38]} 35. Bc2 {[%emt 0:00:01]} Ke7 {[%emt 0:02:29]} 36. Kd3 {[%emt 0:00:06]} b6 {[%emt 0:00:06]} 37. Kxc3 {[%emt 0:00:09]} c5 {[%emt 0:00:05]} 38. bxc5 {[%emt 0:00:08]} bxc5 {[%emt 0:00:07]} 39. f4 {[%emt 0:01:36]} Ke6 {[%emt 0:00:09]} 40. g4 {[%emt 0:00:00]} Kd5 {[%emt 0:00:00]} 41. g5 {[%emt 0:09:46]} hxg5 {[%emt 0:20:35]} 42. fxg5 {[%emt 0:00:10]} Ke5 {[%emt 0:00:03]} 43. g6 {[%emt 0:08:43]} Kf4 {[%emt 0:03:51]} 44. Kd3 {[%emt 0:00:07]} Kf5 {[%emt 0:02:14]} 45. Ke3+ {[%emt 0:02:07]} Ke5 {[%emt 0:00:05]} 46. Kd3 {[%emt 0:00:32]} Kf4 {[%emt 0:00:32]} 47. a5 {[%emt 0:01:07]} Kf5 {[%emt 0:00:48]} 48. Ke3+ {[%emt 0:00:52]} Ke5 {[%emt 0:00:29]} 49. a6 {[%emt 0:02:22]} c4 {[%emt 0:02:40]} 50. h4 {[%emt 0:00:17]} Ne8 {[%emt 0:01:35]} 51. Be4 {[%emt 0:01:30]} Nd6 {[%emt 0:00:36]} 52. Bc2 {[%emt 0:01:31]} Ne8 {[%emt 0:00:28]} 53. Be4 {[%emt 0:01:57]} Nf6 {[%emt 0:02:00]} 54. Bf3 {[%emt 0:00:30]} Ng8 {[%emt 0:00:35]} 55. Bg2 {[%emt 0:03:11]} Nf6 {[%emt 0:02:17]} 56. Bf3 {[%emt 0:00:01]} Ne8 {[%emt 0:01:15] Ke4+} 1/2-1/2